{"text_format":"1","workbook":"xlsx","n_sheets":2,"sheets":["Sheet1","Data"],"not_rendered":{"charts":0,"images":0,"macros":1,"external_links":0,"defined_names":1,"comments":0,"pivot_tables":0},"unopened":[],"bounds":{"document_bytes":16777216,"sheet_cells":100000,"rows_first":2000,"rows_last":500,"rows_between":2000,"halvings":0,"cell_chars":16384,"cell_head_chars":4096},"cells_cut":0,"cells_raw":0,"read":"whole","date_system":"1900"}

{"sheet":"Sheet1","index":0,"n_rows":2,"n_cols":2,"rows_kept":2,"cut":false,"hidden":false,"merged":[]}
["Store Number","Names"]
[1,{"$f":"Concat_Unique(A2,Data!A2:A100,Data!B2:B100)","v":"Jett Ness, Daphne Barham, Keyah Dolan, Laura Fultz, Felipe Ordonez"}]

{"sheet":"Data","index":1,"n_rows":100,"n_cols":5,"rows_kept":100,"cut":false,"hidden":false,"merged":[]}
["Store numbers","Names",null,null,"Unqiue store numbers"]
[22,"Albertha Ordonez",null,null,{"$f":"INDEX($A$2:$A$100,MATCH(0, COUNTIF($E$1:E1,$A$2:$A$100),0))","v":22}]
[24,"Arlais Painter",null,null,{"$f":"INDEX($A$2:$A$100,MATCH(0, COUNTIF($E$1:E2,$A$2:$A$100),0))","v":24}]
[9,"Arlais Painter",null,null,{"$f":"INDEX($A$2:$A$100,MATCH(0, COUNTIF($E$1:E3,$A$2:$A$100),0))","v":9}]
[12,"Frances Benitez",null,null,{"$f":"INDEX($A$2:$A$100,MATCH(0, COUNTIF($E$1:E4,$A$2:$A$100),0))","v":12}]
[5,"Jett Ness",null,null,{"$f":"INDEX($A$2:$A$100,MATCH(0, COUNTIF($E$1:E5,$A$2:$A$100),0))","v":5}]
[17,"Frances Benitez",null,null,{"$f":"INDEX($A$2:$A$100,MATCH(0, COUNTIF($E$1:E6,$A$2:$A$100),0))","v":17}]
[22,"Avery Ahern",null,null,{"$f":"INDEX($A$2:$A$100,MATCH(0, COUNTIF($E$1:E7,$A$2:$A$100),0))","v":23}]
[23,"Felipe Vu",null,null,{"$f":"INDEX($A$2:$A$100,MATCH(0, COUNTIF($E$1:E8,$A$2:$A$100),0))","v":0}]
[0,"Avery Ahern",null,null,{"$f":"INDEX($A$2:$A$100,MATCH(0, COUNTIF($E$1:E9,$A$2:$A$100),0))","v":1}]
[1,"Jett Ness",null,null,{"$f":"INDEX($A$2:$A$100,MATCH(0, COUNTIF($E$1:E10,$A$2:$A$100),0))","v":14}]
[14,"Frances Benitez",null,null,{"$f":"INDEX($A$2:$A$100,MATCH(0, COUNTIF($E$1:E11,$A$2:$A$100),0))","v":20}]
[20,"Felipe Vu",null,null,{"$f":"INDEX($A$2:$A$100,MATCH(0, COUNTIF($E$1:E12,$A$2:$A$100),0))","v":16}]
[16,"Kaliyah Ahern",null,null,{"$f":"INDEX($A$2:$A$100,MATCH(0, COUNTIF($E$1:E13,$A$2:$A$100),0))","v":3}]
[3,"Jett Ness",null,null,{"$f":"INDEX($A$2:$A$100,MATCH(0, COUNTIF($E$1:E14,$A$2:$A$100),0))","v":25}]
[25,"Avery Ahern",null,null,{"$f":"INDEX($A$2:$A$100,MATCH(0, COUNTIF($E$1:E15,$A$2:$A$100),0))","v":13}]
[1,"Daphne Barham",null,null,{"$f":"INDEX($A$2:$A$100,MATCH(0, COUNTIF($E$1:E16,$A$2:$A$100),0))","v":8}]
[12,"Jett Ness",null,null,{"$f":"INDEX($A$2:$A$100,MATCH(0, COUNTIF($E$1:E17,$A$2:$A$100),0))","v":7}]
[13,"Avery Ahern",null,null,{"$f":"INDEX($A$2:$A$100,MATCH(0, COUNTIF($E$1:E18,$A$2:$A$100),0))","v":2}]
[20,"Albertha Ordonez",null,null,{"$f":"INDEX($A$2:$A$100,MATCH(0, COUNTIF($E$1:E19,$A$2:$A$100),0))","v":4}]
[8,"Daphne Barham",null,null,{"$f":"INDEX($A$2:$A$100,MATCH(0, COUNTIF($E$1:E20,$A$2:$A$100),0))","v":21}]
[7,"Arlais Painter",null,null,{"$f":"INDEX($A$2:$A$100,MATCH(0, COUNTIF($E$1:E21,$A$2:$A$100),0))","v":15}]
[1,"Keyah Dolan",null,null,{"$f":"INDEX($A$2:$A$100,MATCH(0, COUNTIF($E$1:E22,$A$2:$A$100),0))","v":19}]
[2,"Frances Benitez",null,null,{"$f":"INDEX($A$2:$A$100,MATCH(0, COUNTIF($E$1:E23,$A$2:$A$100),0))","v":18}]
[2,"Frances Benitez",null,null,{"$f":"INDEX($A$2:$A$100,MATCH(0, COUNTIF($E$1:E24,$A$2:$A$100),0))","v":10}]
[7,"Kaliyah Willett",null,null,{"$f":"INDEX($A$2:$A$100,MATCH(0, COUNTIF($E$1:E25,$A$2:$A$100),0))","v":11}]
[13,"Daphne Barham",null,null,{"$f":"INDEX($A$2:$A$100,MATCH(0, COUNTIF($E$1:E26,$A$2:$A$100),0))","v":6}]
[4,"Avery Ahern",null,null,{"$f":"INDEX($A$2:$A$100,MATCH(0, COUNTIF($E$1:E27,$A$2:$A$100),0))","v":{"$error":"#N/A"}}]
[14,"Felipe Vu"]
[22,"Arlais Painter"]
[21,"Albertha Ordonez"]
[8,"Arlais Painter"]
[15,"Daphne Barham"]
[13,"Albertha Ordonez"]
[9,"Felipe Ordonez"]
[12,"Frances Benitez"]
[7,"Frances Benitez"]
[19,"Jett Ness"]
[12,"Arlais Painter"]
[7,"Avery Ahern"]
[18,"Arlais Painter"]
[4,"Daphne Barham"]
[1,"Laura Fultz"]
[14,"Jett Fultz"]
[17,"Daphne Barham"]
[7,"Arlais Painter"]
[10,"Frances Benitez"]
[16,"Keyah Dolan"]
[4,"Felipe Vu"]
[2,"Laura Fultz"]
[12,"Felipe Ordonez"]
[13,"Arlais Painter"]
[15,"Avery Ahern"]
[15,"Felipe Ordonez"]
[8,"Jett Ness"]
[3,"Keyah Dolan"]
[14,"Felipe Ordonez"]
[12,"Jett Ness"]
[1,"Daphne Barham"]
[5,"Keyah Dolan"]
[19,"Kaliyah Willett"]
[16,"Jett Ness"]
[8,"Felipe Vu"]
[15,"Daphne Barham"]
[7,"Frances Benitez"]
[18,"Arlais Painter"]
[18,"Arlais Painter"]
[2,"Felipe Ordonez"]
[3,"Arlais Painter"]
[13,"Kaliyah Ahern"]
[19,"Laura Fultz"]
[9,"Kaliyah Ahern"]
[15,"Daphne Barham"]
[11,"Felipe Ordonez"]
[17,"Kaliyah Ahern"]
[23,"Frances Benitez"]
[6,"Jett Ness"]
[13,"Keyah Dolan"]
[5,"Felipe Vu"]
[5,"Kaliyah Ahern"]
[25,"Arlais Painter"]
[9,"Albertha Ordonez"]
[14,"Felipe Vu"]
[25,"Daphne Barham"]
[22,"Felipe Vu"]
[22,"Avery Ahern"]
[24,"Felipe Ordonez"]
[2,"Keyah Dolan"]
[22,"Felipe Ordonez"]
[21,"Daphne Barham"]
[1,"Felipe Ordonez"]
[20,"Daphne Barham"]
[11,"Laura Fultz"]
[16,"Felipe Vu"]
[5,"Keyah Dolan"]
[5,"Avery Ahern"]
[21,"Frances Benitez"]
[0,"Felipe Vu"]
[12,"Keyah Dolan"]
[1,"Felipe Ordonez"]